bitfinex/quotes_SOLUSD_20240606
["timestamp","ask_amount","ask_price","bid_price","bid_amount"]
[1717684750970,2.1372,173.12,173.07,7.9277]
[1717684751276,8.2947,173.12,173.07,7.9277]
[1717684751872,8.2947,173.12,173.07,2.1377]
[1717684752166,8.2948,173.11,173.07,2.1377]
[1717684752373,8.2948,173.11,173.06,2.1379]
[1717684752541,6.1575,173.11,173.07,2.1378]
[1717684752940,6.1575,173.11,173.07,7.9278]
[1717684753189,6.1575,173.11,173.08,2.1377]
[1717684753666,6.8364,173.14,173.09,2.1375]
[1717684753875,8.8035,173.13,173.08,7.9276]
[1717684754467,2.1372,173.12,173.08,5.79]
[1717684755146,8.8035,173.13,173.08,7.9277]
[1717684756363,2.1372,173.12,173.08,7.9277]
[1717684757045,8.6013,173.12,173.08,7.9277]
[1717684757646,6.4641,173.12,173.08,7.9277]
[1717684757845,8.6013,173.12,173.08,5.79]
[1717684758777,8.6013,173.12,173.07,2.1377]
[1717684758973,8.6013,173.12,173.07,7.9277]
[1717684759874,8.6013,173.12,173.08,2.1377]
[1717684761371,8.6013,173.12,173.07,2.1377]
[1717684761561,8.6013,173.12,173.08,5.79]
[1717684761975,8.6013,173.12,173.07,7.9277]
[1717684762276,7.9272,173.12,173.07,2.1377]
[1717684762476,6.3584,173.11,173.07,2.1377]
[1717684762974,6.3584,173.11,173.08,2.1377]
[1717684763664,6.3584,173.11,173.07,2.1378]
[1717684763965,8.4957,173.11,173.07,2.1378]
[1717684764160,6.3584,173.11,173.07,2.1378]
[1717684764362,6.0475,173.1,173.06,2.1379]
[1717684764558,8.185,173.1,173.06,2.1379]
[1717684765077,6.0475,173.1,173.06,2.1379]
[1717684765665,6.2538,173.09,173.05,2.138]
[1717684765960,8.3914,173.09,173.05,2.138]
[1717684766164,14.1814,173.09,173.03,5.79]
[1717684767258,14.1814,173.09,173.02,4.2768]
[1717684767457,14.1814,173.09,173.03,5.79]
[1717684767954,8.3914,173.09,173.03,5.79]
[1717684768451,14.1814,173.09,173.03,5.79]
[1717684768766,6.6148,173.15,173.06,120.0]
[1717684768948,8.7519,173.13,173.09,2.1375]
[1717684769152,6.6148,173.13,173.09,2.1375]
[1717684769976,8.7519,173.13,173.09,2.1375]
[1717684771290,21.2186,173.12,173.02,120.0]
[1717684771586,6.1657,173.1,173.07,2.1378]
[1717684773463,6.1657,173.1,173.06,4.2759]
[1717684774184,6.1657,173.1,173.07,2.1378]
[1717684774676,6.1657,173.1,173.08,2.1377]
[1717684778787,6.1657,173.1,173.07,2.1377]
[1717684780777,6.2087,173.09,173.07,2.1377]
[1717684781370,6.2087,173.09,173.06,2.1379]
[1717684782085,6.2087,173.09,173.07,2.1378]
[1717684783186,6.2087,173.09,173.06,7.9279]
[1717684783370,6.2087,173.09,173.06,2.1379]
[1717684784599,6.2087,173.09,173.07,2.1378]
[1717684785287,6.2087,173.09,173.05,10.0661]
[1717684786185,6.2087,173.09,173.05,4.2761]
[1717684786367,6.2087,173.09,173.06,5.79]
[1717684788801,6.2087,173.09,173.07,2.1378]
[1717684790900,6.2087,173.09,173.05,10.0661]
[1717684791275,6.2087,173.09,173.06,2.1378]
[1717684792771,6.2087,173.09,173.07,2.1378]
[1717684793183,6.2087,173.09,173.06,2.1379]
[1717684793384,6.2087,173.09,173.07,2.1378]
[1717684794194,6.2087,173.09,173.06,2.1379]
[1717684795203,6.2087,173.09,173.07,2.1378]
[1717684796103,6.2087,173.09,173.06,2.1379]
[1717684796601,6.2087,173.09,173.07,2.1378]
[1717684799388,6.2087,173.09,173.06,2.1379]
[1717684800311,6.2087,173.09,173.07,2.1378]
[1717684800512,6.2087,173.09,173.06,2.1379]
[1717684800705,6.0336,173.09,173.06,2.1379]
[1717684802211,6.0336,173.09,173.07,2.1378]
[1717684802812,6.0336,173.09,173.05,10.0661]
[1717684803021,6.0336,173.09,173.05,4.2761]
[1717684803221,6.0336,173.09,173.05,10.0661]
[1717684803423,6.0336,173.09,173.06,2.1379]
[1717684804089,2.1378,173.08,173.04,2.1382]
[1717684804286,6.6797,173.07,173.04,2.1382]
[1717684807117,6.6797,173.07,173.0,4.2772]
[1717684807299,6.6797,173.07,173.03,2.1382]
[1717684807620,6.6797,173.07,173.01,5.79]
[1717684807621,6.6797,173.07,173.04,2.1382]
[1717684815027,6.6797,173.07,173.03,2.1382]
[1717684815226,6.6797,173.07,173.04,2.1381]
[1717684815830,6.6797,173.07,173.03,2.1382]
[1717684816511,6.6797,173.07,173.04,2.1382]
[1717684817007,6.6797,173.07,173.03,2.1382]
[1717684820429,6.6797,173.07,173.02,5.79]
[1717684822211,6.6797,173.07,173.04,2.1381]
[1717684822411,14.3851,173.09,173.04,2.1381]
[1717684822722,0.17,173.08,173.04,2.1381]
[1717684823630,6.5299,173.08,173.04,2.1381]
[1717684823931,8.6676,173.08,173.04,2.1381]
[1717684824937,6.2892,173.07,172.98,120.0]
[1717684825150,14.2171,173.07,173.02,2.1384]
[1717684825848,6.2892,173.07,173.03,2.1383]
[1717684826050,6.2892,173.07,173.04,2.1382]
[1717684826841,6.2892,173.07,173.03,2.1382]
[1717684827022,6.2892,173.07,173.02,5.79]
[1717684827226,22.3851,173.11,173.07,2.1377]
[1717684827432,6.1788,173.11,173.08,2.1377]
[1717684827643,21.6109,173.15,173.09,5.79]
[1717684827945,6.1413,173.15,173.11,2.1373]
[1717684828239,6.1413,173.15,173.1,7.9274]
[1717684828441,2.137,173.14,173.09,2.1375]
[1717684828621,8.3767,173.14,173.09,7.9275]
[1717684829567,6.2397,173.14,173.1,2.1374]
[1717684830448,6.2397,173.14,173.1,7.9274]
[1717684830750,6.2397,173.14,173.1,2.1374]
[1717684831138,6.2397,173.14,173.1,7.9274]
[1717684831530,6.2397,173.14,173.11,7.9273]
[1717684831869,6.2928,173.16,173.12,5.79]
[1717684832225,6.2928,173.16,173.11,7.9273]
[1717684833345,6.2928,173.16,173.12,2.1372]
[1717684838356,2.1365,173.18,173.12,7.9272]
[1717684838556,0.34,173.17,173.13,2.137]
[1717684839062,0.17,173.17,173.14,2.1369]
[1717684839362,8.4098,173.2,173.15,5.79]
[1717684839534,0.34,173.19,173.15,5.79]
[1717684839739,34.3236,173.24,173.16,7.9267]
[1717684839938,7.9261,173.22,173.16,7.9267]
[1717684840165,2.1361,173.21,173.16,7.9267]
[1717684840852,2.1361,173.21,173.16,5.79]
[1717684841046,25.7272,173.24,173.17,7.9265]
[1717684841265,2.136,173.22,173.17,5.79]
[1717684841461,2.136,173.22,173.17,7.9266]
[1717684843451,0.8227975,173.26,173.1,6.384]
[1717684843452,0.8227975,173.26,173.2,5.79]
[1717684843647,2.1356,173.25,173.2,5.79]
[1717684843862,6.6127975,173.26,173.2,5.79]
[1717684844068,2.9582975,173.26,173.21,7.926]
[1717684844361,2.1356,173.25,173.21,5.79]
[1717684844568,2.1357,173.24,173.21,5.79]
[1717684844758,2.1356,173.25,173.21,5.79]
[1717684845264,2.1356,173.25,173.2,7.9262]
[1717684847661,14.1669,173.25,173.2,2.1362]
[1717684848572,2.1357,173.24,173.19,5.79]
[1717684849361,14.1669,173.25,173.19,5.79]
[1717684849765,8.3769,173.25,173.19,5.79]
[1717684850061,8.9182975,173.26,173.2,7.9261]
[1717684850265,0.17,173.25,173.2,7.9261]
[1717684850873,2.3056,173.25,173.2,7.9261]
[1717684851368,2.1356,173.25,173.2,7.9261]
[1717684851777,8.7482975,173.26,173.21,2.1361]
[1717684852579,8.7482975,173.26,173.2,7.9261]
[1717684852875,8.7482975,173.26,173.21,2.1361]
[1717684853575,2.9582975,173.26,173.21,2.1361]
[1717684853769,2.9582975,173.26,173.21,7.9261]
[1717684855075,8.7482975,173.26,173.21,2.1361]
[1717684855572,2.1356,173.25,173.2,2.1362]
[1717684855977,2.1356,173.25,173.2,7.9262]
[1717684857474,2.1356,173.25,173.2,2.1362]
[1717684857694,2.1356,173.25,173.2,7.9262]
[1717684857877,8.7482975,173.26,173.21,2.1361]
[1717684858268,2.1356,173.25,173.21,2.1361]
[1717684858786,8.7482975,173.26,173.21,2.1361]
[1717684858960,0.8227975,173.26,173.2,5.79]
[1717684859280,0.8227975,173.26,173.22,2.1359]
[1717684859776,0.8227975,173.26,173.21,7.926]
[1717684859976,0.8227975,173.26,173.21,5.79]
[1717684860477,0.8227975,173.26,173.18,4.2728]
[1717684860668,2.9582975,173.26,173.18,24.2728]
[1717684860871,5.79,173.25,173.18,24.2728]
[1717684861073,6.6127975,173.26,173.2,5.79]
[1717684861585,0.8227975,173.26,173.21,5.79]
[1717684862078,0.8227975,173.26,173.23,2.1358]
[1717684862957,0.8227975,173.26,173.24,2.1357]
[1717684863363,0.8227975,173.26,173.24,7.9257]
[1717684863885,0.8227975,173.26,173.24,5.79]
[1717684864271,0.8227975,173.26,173.23,7.9258]
[1717684865466,0.8227975,173.26,173.19,140.0]
[1717684865692,0.8227975,173.26,173.22,7.9259]
[1717684866385,0.8227975,173.26,173.22,2.1359]
[1717684868098,0.8227975,173.26,173.2,2.1362]
[1717684868099,5.79,173.24,173.2,2.1362]
[1717684868267,5.79,173.24,173.19,2.1363]
[1717684868268,7.9257,173.24,173.19,2.1363]
[1717684868595,7.9258,173.24,173.19,2.1363]
[1717684868782,0.17,173.23,173.19,2.1363]
[1717684869098,0.17,173.23,173.17,24.2731]
[1717684869270,0.17,173.23,173.15,4.2736]
[1717684869271,12.2468,173.23,173.15,4.2736]
[1717684869470,5.79,173.22,173.16,5.79]
[1717684869690,8.0961,173.21,173.15,7.9267]
[1717684869991,2.1364,173.19,173.14,2.1369]
[1717684870199,8.0963,173.2,173.14,7.9269]
[1717684870367,7.9263,173.19,173.14,2.1369]
[1717684870569,0.17,173.18,173.14,2.1369]
[1717684871294,8.2665,173.18,173.12,5.79]
[1717684871515,6.13,173.18,173.12,2.1371]
[1717684871792,5.79,173.17,173.12,2.1371]
[1717684872394,7.9266,173.17,173.11,2.1373]
[1717684872577,0.17,173.16,173.11,7.9273]
[1717684873168,0.34,173.16,173.11,7.9273]
[1717684873972,6.13,173.16,173.11,2.1373]
[1717684874166,14.7182,173.16,173.1,5.79]
[1717684874366,14.7182,173.16,173.09,2.1375]
[1717684874367,5.79,173.15,173.09,2.1375]
[1717684874596,0.17,173.14,173.09,2.1375]
[1717684874800,6.13,173.14,173.09,2.1375]
[1717684874981,14.7274,173.14,173.09,2.1375]
[1717684875385,14.7274,173.14,173.0,5.776]
[1717684875386,7.9274,173.11,173.05,2.138]
[1717684875676,6.4604,173.13,173.05,2.138]
[1717684875677,5.96,173.1,173.05,2.138]
[1717684876083,5.96,173.1,173.04,5.79]
[1717684876412,5.79,173.08,173.03,2.1382]
[1717684876905,5.79,173.07,173.03,2.1382]
[1717684877096,5.79,173.07,173.02,2.1384]
[1717684877687,6.6741,173.08,173.02,2.1384]
[1717684878011,0.17,173.07,173.02,7.9284]
[1717684878304,0.17,173.07,173.03,2.1383]
[1717684879417,0.17,173.07,173.02,7.9284]
[1717684880509,0.17,173.07,173.03,2.1383]
[1717684881100,0.17,173.07,173.03,7.9283]
[1717684881412,6.5041,173.08,173.03,7.9283]
[1717684883284,0.34,173.09,173.05,5.79]
[1717684883489,0.17,173.09,173.06,5.79]
[1717684883694,2.1374,173.11,173.06,5.79]
[1717684883695,0.34,173.1,173.06,5.79]
[1717684884105,0.17,173.1,173.06,7.9279]
[1717684884416,2.4774,173.11,173.02,124.2768]
[1717684884606,2.3074,173.11,173.06,5.79]
[1717684884797,2.3074,173.11,173.07,5.79]
[1717684884992,6.1032,173.12,173.07,5.79]
[1717684885198,8.2405,173.12,173.03,4.2765]
[1717684885393,6.1032,173.12,173.08,5.79]
[1717684885594,6.1032,173.12,173.08,7.9277]
[1717684885901,6.1032,173.12,173.08,5.79]
[1717684886423,6.1032,173.12,173.08,7.9276]
[1717684886893,8.2404,173.12,173.08,5.79]
[1717684888006,8.2404,173.12,173.07,5.79]
[1717684888327,8.2404,173.12,173.07,7.9278]
[1717684888626,8.2404,173.12,173.07,5.79]
[1717684889019,8.2404,173.12,173.07,7.9278]
[1717684889502,6.1032,173.12,173.07,7.9278]
[1717684889700,8.2404,173.12,173.07,7.9278]
[1717684889916,8.2404,173.12,173.06,2.1379]
[1717684890116,6.254,173.11,173.06,7.9279]
[1717684890420,6.4143,173.1,173.03,2.1383]
[1717684890589,5.96,173.09,173.03,5.79]
[1717684890785,5.96,173.09,173.03,7.9282]
[1717684890786,2.3077,173.08,173.03,7.9282]
[1717684891019,8.722,173.08,173.03,7.9282]
[1717684891513,6.5843,173.08,173.03,7.9282]
[1717684892018,8.722,173.08,173.03,2.1382]
[1717684892232,8.722,173.08,173.03,5.79]
[1717684892787,8.722,173.08,173.03,7.9283]
[1717684893619,6.5843,173.08,173.03,7.9283]
[1717684893820,6.5843,173.08,173.03,5.79]
[1717684894403,6.5843,173.08,173.04,5.79]
[1717684895427,8.722,173.08,173.03,5.79]
[1717684896430,8.722,173.08,173.02,2.1384]
[1717684896597,8.722,173.08,173.03,5.79]
[1717684897302,8.722,173.08,173.03,7.9283]
[1717684897599,6.5843,173.08,173.03,7.9283]
[1717684899557,8.722,173.08,173.03,7.9283]
[1717684900221,6.0678,173.07,173.01,20.0]
[1717684900412,6.0678,173.07,173.03,5.79]
[1717684905613,2.1378,173.07,173.0,4.2773]
[1717684905810,6.2193,173.06,173.02,2.1384]
[1717684906112,6.2193,173.06,173.02,7.9284]
[1717684907816,2.1378,173.07,173.02,7.9284]
[1717684908028,8.2123,173.08,173.03,7.9283]
[1717684908230,2.1378,173.07,173.03,5.79]
[1717684908436,6.1537,173.07,173.03,5.79]
[1717684910335,6.1537,173.07,173.03,7.9282]
[1717684911139,8.2915,173.07,173.03,5.79]
[1717684914467,6.1537,173.07,173.03,5.79]
[1717684915664,8.2915,173.07,173.03,5.79]
[1717684916542,7.9276,173.09,173.03,5.79]
[1717684916866,2.1377,173.08,173.05,5.79]
[1717684917068,2.1376,173.09,173.05,5.79]
[1717684917248,2.1377,173.08,173.05,5.79]
[1717684918336,2.1376,173.09,173.04,2.1381]
[1717684918663,2.1376,173.09,173.05,5.79]
[1717684919064,2.1376,173.09,173.06,5.79]
[1717684919271,2.1375,173.1,173.06,5.79]
[1717684920056,2.1372,173.13,173.09,5.79]
[1717684920286,2.1373,173.12,173.08,5.79]
[1717684920447,8.2097,173.13,173.08,7.9276]
[1717684921067,2.1372,173.12,173.08,5.79]
[1717684921572,2.1373,173.11,173.08,5.79]
[1717684921775,2.1373,173.11,173.06,2.1379]
[1717684921946,2.1374,173.1,173.07,5.79]
[1717684922146,2.1374,173.1,173.06,7.9279]
[1717684922357,8.7446,173.11,173.06,7.9279]
[1717684922557,8.7446,173.11,173.04,4.2764]
[1717684922775,6.6072,173.11,173.06,5.79]
[1717684923157,8.7445,173.11,173.06,5.79]
[1717684923573,6.6072,173.11,173.07,2.1378]
[1717684924457,6.6072,173.11,173.07,7.9278]
[1717684924657,6.6072,173.11,173.07,5.79]
[1717684929772,7.9271,173.13,173.07,5.79]
[1717684929979,2.307,173.14,173.1,5.79]
[1717684930180,8.4558,173.15,173.1,5.79]
[1717684930367,8.4558,173.15,173.11,5.79]
[1717684930687,2.137,173.14,173.11,5.79]
[1717684931889,2.137,173.14,173.1,5.79]
[1717684932070,2.1371,173.13,173.1,5.79]
[1717684932272,2.1371,173.13,173.09,5.79]
[1717684932486,2.1372,173.12,173.09,5.79]
[1717684932991,2.1371,173.13,173.09,5.79]
[1717684934588,2.1372,173.12,173.09,5.79]
[1717684934894,2.1372,173.12,173.07,7.9278]
[1717684935189,2.1373,173.11,173.07,7.9278]
[1717684935381,2.1372,173.12,173.07,7.9278]
[1717684935587,2.1371,173.13,173.08,7.9277]
[1717684935891,10.064,173.14,173.08,7.9277]
[1717684935892,2.1372,173.12,173.08,7.9277]
[1717684936480,2.1371,173.13,173.08,7.9277]
[1717684937393,2.1371,173.13,173.08,2.1377]
[1717684937698,2.1372,173.12,173.08,7.9277]
[1717684938596,2.1371,173.13,173.08,7.9277]
[1717684940999,2.1372,173.12,173.08,7.9277]
[1717684941992,2.1372,173.12,173.08,5.79]
[1717684942795,2.1372,173.12,173.08,7.9277]
[1717684943296,2.1372,173.12,173.08,5.79]
[1717684943996,2.1372,173.12,173.08,7.9277]
[1717684944499,2.1371,173.13,173.08,7.9277]
[1717684945489,2.1372,173.12,173.08,7.9277]
[1717684947809,2.1371,173.13,173.08,7.9277]
[1717684947986,2.1372,173.12,173.08,7.9277]
[1717684949604,2.1371,173.13,173.08,7.9277]
[1717684951290,2.1371,173.13,173.09,2.1376]
[1717684951891,2.1371,173.13,173.08,7.9276]
[1717684952712,2.1371,173.13,173.09,2.1375]
[1717684953329,2.1371,173.13,173.08,2.1376]
[1717684953526,2.1371,173.13,173.08,7.9276]
[1717684954217,2.1371,173.13,173.08,2.1376]
[1717684954395,2.1371,173.13,173.08,7.9276]
[1717684955328,2.1371,173.13,173.08,2.1376]
[1717684955816,2.1372,173.12,173.08,7.9276]
[1717684957101,2.1372,173.12,173.08,2.1376]
[1717684958817,5.79,173.14,173.08,2.1376]
[1717684958818,2.1371,173.13,173.08,2.1376]
[1717684959639,2.1372,173.12,173.07,2.1378]
[1717684960027,2.1375,173.1,173.06,2.1379]
[1717684961416,2.1375,173.1,173.03,24.2765]
[1717684961615,7.9275,173.1,173.04,5.79]
[1717684962326,5.79,173.1,173.04,5.79]
[1717684962626,5.79,173.1,173.03,24.2765]
[1717684962833,5.79,173.1,173.04,5.79]
[1717684963033,8.0974,173.11,173.06,2.1378]
[1717684963333,0.17,173.1,173.06,2.1378]
[1717684964132,0.17,173.1,173.04,10.0663]
[1717684964133,0.17,173.1,173.07,2.1378]
[1717684964341,2.3073,173.12,173.07,2.1378]
[1717684964532,7.9273,173.12,173.07,2.1378]
[1717684965136,2.1373,173.12,173.07,2.1378]
[1717684965450,7.9273,173.12,173.07,2.1378]
[1717684965947,2.1373,173.11,173.07,2.1378]
[1717684966343,7.9273,173.11,173.07,2.1378]
[1717684966646,2.1373,173.11,173.07,2.1378]
[1717684967022,2.1375,173.1,173.06,2.1379]
[1717684968154,2.1376,173.09,173.05,2.138]
[1717684968336,2.1376,173.09,173.04,2.1382]
[1717684971120,2.1376,173.09,173.02,4.2769]
[1717684971329,2.1376,173.09,173.03,5.79]
[1717684971745,2.1376,173.09,173.04,5.79]
[1717684972251,2.1375,173.1,173.05,5.79]
[1717684972454,4.4448,173.11,173.05,5.79]
[1717684972758,2.1376,173.09,173.05,7.928]
[1717684973053,0.17,173.1,173.05,7.928]
[1717684973054,2.3075,173.1,173.05,7.928]
[1717684973628,2.1376,173.09,173.04,2.1381]
[1717684973833,2.1376,173.09,173.04,7.9281]
[1717684974849,2.1376,173.09,173.04,2.1381]
[1717684975049,2.1376,173.09,173.04,7.9281]
[1717684975954,0.17,173.1,173.04,7.9282]
[1717684976144,2.1378,173.07,173.02,2.1384]
[1717684976350,2.1378,173.07,173.02,7.9284]
[1717684977446,2.1378,173.07,173.03,2.1383]
[1717684977927,2.1378,173.07,173.02,5.79]
[1717684978635,2.1378,173.07,172.99,10.0535]
[1717684978853,2.1378,173.07,173.0,25.776]
[1717684979155,2.1378,173.07,173.02,5.79]
[1717684981243,7.9278,173.07,173.0,25.776]
[1717684981448,7.9278,173.07,173.01,5.79]
[1717684983158,7.9278,173.07,173.0,25.776]
[1717684983350,7.9278,173.07,173.01,5.79]
[1717684984245,2.1378,173.07,173.01,5.79]
[1717684985070,8.0978,173.08,173.01,5.79]
[1717684985272,0.17,173.07,173.03,2.1382]
[1717684985948,6.6209,173.07,173.03,2.1382]
[1717684986164,8.7587,173.07,173.03,2.1382]
[1717684986548,6.6209,173.07,173.03,2.1382]
[1717684989176,8.7587,173.07,173.03,2.1382]
[1717684989465,8.7587,173.07,173.02,7.9284]
[1717684989873,8.7587,173.07,173.03,2.1383]
[1717684991270,6.0673,173.06,173.03,2.1383]
[1717684993755,6.0673,173.06,173.0,24.2773]
[1717684993957,6.0673,173.06,173.01,5.79]
[1717684999169,6.0673,173.06,173.0,4.2773]
[1717684999382,6.0673,173.06,173.01,5.79]
[1717685000454,6.0673,173.06,173.0,4.2773]
[1717685000657,0.17,173.05,172.99,5.776]
[1717685000955,11.9031,173.04,172.98,10.0677]
[1717685001367,6.1131,173.04,172.99,5.79]
[1717685001576,8.2513,173.04,173.0,2.1386]
[1717685001759,6.5836,173.03,172.92,120.0]
[1717685001959,8.722,173.03,172.99,2.1388]
[1717685003157,6.5836,173.03,172.99,2.1388]
[1717685003380,8.7219,173.03,172.99,2.1388]
[1717685004582,8.7219,173.03,172.98,7.9289]
[1717685004886,8.722,173.03,172.98,5.79]
[1717685005071,8.722,173.03,172.98,7.9288]
[1717685005584,8.722,173.03,172.99,2.1388]
[1717685005963,8.722,173.03,172.99,7.9288]
[1717685006475,6.4136,173.03,172.99,5.79]
[1717685006663,6.2436,173.03,173.0,5.79]
[1717685007585,8.3819,173.03,173.0,5.79]
[1717685008280,8.3819,173.03,172.99,2.1387]
[1717685008487,8.3819,173.03,173.0,5.79]
[1717685008668,2.1384,173.02,173.0,5.79]
[1717685009465,8.382,173.03,173.0,5.79]
[1717685009666,8.382,173.03,172.99,5.79]
[1717685010365,2.1384,173.02,172.98,2.1389]
[1717685010570,2.1384,173.02,172.99,5.79]
[1717685011388,2.1384,173.02,172.98,2.1389]
[1717685011570,8.382,173.03,172.99,5.79]
[1717685012789,8.382,173.03,172.99,7.9288]
[1717685012965,2.3083,173.04,172.99,7.9288]
[1717685013583,2.1383,173.03,172.99,7.9288]
[1717685014184,2.1383,173.03,173.0,5.79]
[1717685014387,2.1383,173.03,173.0,6.56399659]
[1717685014573,8.5095,173.05,173.01,5.79]
[1717685014776,8.3395,173.05,173.01,5.79]
[1717685015588,2.1382,173.04,173.01,5.79]
[1717685016689,2.1382,173.04,172.99,2.1387]
[1717685016872,8.4591,173.04,173.0,5.79]
[1717685017586,8.4591,173.04,172.99,7.9287]
[1717685017904,8.4591,173.04,173.0,7.9287]
[1717685019199,8.4591,173.04,173.0,2.1387]
[1717685019598,6.3209,173.04,173.0,7.9287]
[1717685021378,2.1381,173.05,173.01,2.1385]
[1717685021586,2.1381,173.05,173.01,7.9285]
[1717685021903,2.308,173.06,173.01,7.9285]
[1717685022084,8.5468,173.06,173.02,5.79]
[1717685022602,2.1381,173.05,173.02,5.79]
[1717685023107,16.8429,173.1,173.03,2.1382]
[1717685023405,16.8429,173.1,172.98,5.79]
[1717685023406,8.2926,173.1,173.07,5.79]
[1717685024181,6.1551,173.1,173.07,7.9277]
[1717685024400,2.1374,173.11,173.07,7.9277]
[1717685024401,2.1374,173.11,173.07,5.79]
[1717685024606,2.1374,173.11,173.08,5.79]
[1717685025101,2.1374,173.1,173.08,5.79]
[1717685025304,2.1374,173.11,173.08,5.79]
[1717685026405,2.1375,173.1,173.08,5.79]
[1717685026622,2.1375,173.1,173.07,5.79]
[1717685027791,2.1375,173.1,173.08,5.79]
[1717685029090,2.1374,173.11,173.08,5.79]
[1717685031803,5.79,173.14,173.08,5.79]
[1717685032005,2.3069,173.15,173.11,7.9273]
[1717685032209,2.3069,173.15,173.1,2.1374]
[1717685032409,2.1369,173.15,173.11,2.1373]
[1717685032588,4.2733,173.17,173.11,5.79]
[1717685032589,2.137,173.14,173.11,5.79]
[1717685032932,2.137,173.14,173.12,5.79]
[1717685034231,2.1369,173.15,173.12,5.79]
[1717685034919,2.137,173.14,173.12,5.79]
[1717685035539,2.1369,173.15,173.12,5.79]
[1717685036037,2.137,173.14,173.12,5.79]
[1717685037737,2.1369,173.15,173.13,5.79]
[1717685037945,16.8294,173.19,173.13,5.79]
[1717685038132,2.1367,173.17,173.13,5.79]
[1717685038432,2.1366,173.17,173.13,7.9271]
[1717685038738,2.1366,173.17,173.13,5.79]
[1717685039237,2.1367,173.16,173.13,5.79]
[1717685040637,2.1367,173.16,173.12,2.1371]
[1717685040824,2.1367,173.16,173.13,5.79]
[1717685041136,2.1367,173.16,173.12,7.9271]
[1717685041545,2.1367,173.16,173.12,5.79]
[1717685041830,0.17,173.17,173.12,7.9271]
[1717685042036,2.1368,173.16,173.12,7.9271]
[1717685042218,2.1366,173.17,173.12,7.9271]
[1717685042418,2.1366,173.17,173.13,5.79]
[1717685043032,2.1367,173.16,173.13,5.79]
[1717685044240,2.1366,173.17,173.13,5.79]
[1717685044636,2.1366,173.17,173.12,2.1371]
[1717685044848,2.1366,173.17,173.13,5.79]
[1717685045031,2.1366,173.17,173.13,7.9271]
[1717685045946,2.1366,173.17,173.14,5.79]
[1717685047532,2.1365,173.18,173.15,5.79]
[1717685048541,2.1364,173.19,173.15,2.1368]
[1717685048753,2.1363,173.2,173.17,5.79]
[1717685049124,6.087,173.23,173.18,5.79]
[1717685049343,2.136,173.22,173.19,5.79]
[1717685049761,2.1359,173.23,173.2,5.79]
[1717685049967,2.1359,173.23,173.19,7.9263]
[1717685050267,2.136,173.22,173.18,7.9264]
[1717685050654,10.0615,173.24,173.18,5.79]
[1717685050841,10.062,173.22,173.14,4.2738]
[1717685051163,10.062,173.22,173.16,7.9266]
[1717685051164,2.1362,173.21,173.16,7.9266]
[1717685051866,2.136,173.22,173.18,2.1365]
[1717685052457,2.136,173.22,173.18,7.9265]
[1717685054371,2.136,173.22,173.18,2.1365]
[1717685054574,2.1361,173.21,173.15,4.2736]